[Event "3rd FIDE WCCC Rapid U10 2019"]
[Site "Minsk"]
[Date "2019.08.17"]
[Round "7.5"]
[White "Morkunas, Gustas"]
[Black "Zemlyanskii, Ivan"]
[Result "1-0"]
[ECO "C11"]
[WhiteElo "1400"]
[BlackElo "1571"]
[Annotator "NA"]
[PlyCount "119"]
[EventDate "2019.08.16"]
[EventType "swiss"]
[EventCountry "BLR"]
[SourceTitle "playchess.com"]
[Source "ChessBase"]
[SourceQuality "1"]
[TimeControl "600+5"]

1. e4 {[%emt 0:00:00]} e6 {[%emt 0:00:00]} 2. d4 {[%emt 0:00:00]} d5 {[%emt 0:00:00]} 3. Nc3 {[%emt 0:00:00]} Nf6 {[%emt 0:00:00]} 4. e5 {[%emt 0:00:00]} Nfd7 {[%emt 0:00:00]} 5. f4 {[%emt 0:00:02]} c5 {[%emt 0:00:00]} 6. Nf3 {[%emt 0:00:01]} Nc6 {[%emt 0:00:01]} 7. Be3 {[%emt 0:00:01]} Rb8 {[%emt 0:00:01]} 8. Be2 {[%emt 0:00:13]} Qa5 {[%emt 0:00:07]} 9. Qd2 {[%emt 0:00:08]} b5 {[%emt 0:00:17]} 10. O-O Be7 {[%emt 0:00:14]} 11. a3 {[%emt 0:00:18]} cxd4 {[%emt 0:00:21]} 12. Nxd4 {[%emt 0:00:02]} Nxd4 {[%emt 0:00:08]} 13. Bxd4 {[%emt 0:00:03]} a6 {[%emt 0:00:05]} 14. Kh1 {[%emt 0:00:12]} Qc7 {[%emt 0:00:14]} 15. Rad1 {[%emt 0:00:11]} O-O {[%emt 0:00:13]} 16. Qe3 {[%emt 0:01:01]} Bc5 {[%emt 0:00:19]} 17. Bf3 {[%emt 0:00:49]} Bb7 {[%emt 0:00:24]} 18. Bxc5 {[%emt 0:00:45]} Qxc5 {[%emt 0:00:03]} 19. Qxc5 {[%emt 0:00:09]} Nxc5 {[%emt 0:00:01]} 20. Ne2 {[%emt 0:00:01]} Rbc8 {[%emt 0:00:18]} 21. Nd4 {[%emt 0:00:02]} Nd7 {[%emt 0:00:04]} 22. c3 {[%emt 0:00:05]} g6 {[%emt 0:00:32]} 23. Be2 {[%emt 0:00:10]} Nb6 {[%emt 0:00:02]} 24. Rc1 {[%emt 0:00:32]} Na4 {[%emt 0:00:20]} 25. Rc2 {[%emt 0:00:06]} Rc7 {[%emt 0:01:06]} 26. Rfc1 {[%emt 0:00:22]} Rfc8 {[%emt 0:00:24]} 27. Kg1 {[%emt 0:00:07]} Kf8 {[%emt 0:00:40]} 28. Kf2 {[%emt 0:00:05]} Ke7 {[%emt 0:00:15]} 29. Ke3 {[%emt 0:00:11]} Nxb2 {[%emt 0:00:41]} 30. Rxb2 {[%emt 0:00:10]} Rxc3+ {[%emt 0:00:01]} 31. Rxc3 {[%emt 0:00:01]} Rxc3+ {[%emt 0:00:01]} 32. Kd2 {[%emt 0:01:01]} Rxa3 {[%emt 0:00:04]} 33. Bf3 {[%emt 0:01:04]} Kd7 {[%emt 0:00:41]} 34. Nb3 {[%emt 0:00:12]} Kc6 {[%emt 0:00:52]} 35. Nd4+ {[%emt 0:01:33]} Kc5 {[%emt 0:00:20]} 36. Nb3+ {[%emt 0:00:21]} Kb6 {[%emt 0:00:10]} 37. Be2 {[%emt 0:00:13]} Bc6 {[%emt 0:01:04]} 38. Nd4 {[%emt 0:00:17]} Bd7 {[%emt 0:00:05]} 39. Nb3 {[%emt 0:00:07]} a5 {[%emt 0:00:22]} 40. Nd4 {[%emt 0:00:31]} b4 {[%emt 0:00:02]} 41. Nc2 {[%emt 0:00:01]} Rc3 {[%emt 0:00:50]} 42. Nxb4 {[%emt 0:00:23]} Rc8 {[%emt 0:00:26]} 43. Nxd5+ {[%emt 0:00:09]} Kc5 {[%emt 0:00:44]} 44. Nf6 {[%emt 0:00:05]} Bc6 {[%emt 0:00:07]} 45. Rc2+ {[%emt 0:00:20]} Kb4 {[%emt 0:00:17]} 46. Bf3 {[%emt 0:00:17]} a4 {[%emt 0:00:13]} 47. Bxc6 {[%emt 0:00:24]} a3 {[%emt 0:00:01]} 48. Kc1 {[%emt 0:00:25]} Kb3 {[%emt 0:00:12]} 49. Ba4+ {[%emt 0:00:02]} Kxa4 {[%emt 0:00:05]} 50. Rxc8 {[%emt 0:00:02]} Kb3 {[%emt 0:00:02]} 51. Ra8 {[%emt 0:00:01]} a2 {[%emt 0:00:03]} 52. Nxh7 {[%emt 0:00:06]} f5 {[%emt 0:00:04]} 53. exf6 {[%emt 0:00:02]} g5 {[%emt 0:00:01]} 54. Nxg5 {[%emt 0:00:05]} e5 {[%emt 0:00:01]} 55. fxe5 {[%emt 0:00:01]} a1=Q+ {[%emt 0:00:04]} 56. Rxa1 {[%emt 0:00:02]} Kc3 {[%emt 0:00:01]} 57. f7 {[%emt 0:00:05]} Kd3 {[%emt 0:00:01]} 58. Ra3+ {[%emt 0:00:02]} Ke2 {[%emt 0:00:02]} 59. f8=Q {[%emt 0:00:09]} Ke1 {[%emt 0:00:01]} 60. Re3# {[%emt 0:00:08]} 1-0

[Event "3rd FIDE WCCC Rapid U10 2019"]
[Site "Minsk"]
[Date "2019.08.17"]
[Round "7.6"]
[White "Pustovit, Maksym"]
[Black "Plotnikov, Boris"]
[Result "1-0"]
[ECO "B07"]
[WhiteElo "1251"]
[BlackElo "1446"]
[Annotator "NA"]
[PlyCount "109"]
[EventDate "2019.08.16"]
[EventType "swiss"]
[EventCountry "BLR"]
[SourceTitle "playchess.com"]
[Source "ChessBase"]
[SourceQuality "1"]
[TimeControl "600+5"]

1. e4 {[%emt 0:00:00]} d6 {[%emt 0:00:00]} 2. d4 {[%emt 0:00:00]} Nf6 {[%emt 0:00:00]} 3. Nc3 {[%emt 0:00:00]} Nc6 {[%emt 0:00:00]} 4. Be3 {[%emt 0:00:03]} e5 {[%emt 0:00:00]} 5. Nge2 {[%emt 0:00:06]} exd4 {[%emt 0:00:10]} 6. Nxd4 {[%emt 0:00:03]} Be7 {[%emt 0:00:08]} 7. Bb5 {[%emt 0:00:13]} Bd7 {[%emt 0:00:02]} 8. O-O {[%emt 0:00:15]} Nxd4 {[%emt 0:00:03]} 9. Bxd7+ {[%emt 0:00:03]} Qxd7 {[%emt 0:00:02]} 10. Bxd4 {[%emt 0:00:03]} O-O {[%emt 0:00:04]} 11. Bxf6 {[%emt 0:00:11]} Bxf6 {[%emt 0:00:03]} 12. Nd5 {[%emt 0:00:04]} Bd8 {[%emt 0:00:18]} 13. Ne3 {[%emt 0:00:17]} Re8 {[%emt 0:00:12]} 14. Qf3 {[%emt 0:00:14]} Qc6 {[%emt 0:00:24]} 15. Nd5 {[%emt 0:00:16]} Qxc2 {[%emt 0:00:27]} 16. Nc3 {[%emt 0:00:24]} Qxb2 {[%emt 0:01:21]} 17. Rab1 {[%emt 0:00:12]} Qa3 {[%emt 0:00:02]} 18. Rxb7 {[%emt 0:00:22]} Qa6 {[%emt 0:00:51]} 19. Rb3 {[%emt 0:00:16]} c6 {[%emt 0:00:16]} 20. Rfb1 {[%emt 0:00:45]} Bb6 {[%emt 0:00:02]} 21. a3 {[%emt 0:00:36]} Rab8 {[%emt 0:00:09]} 22. Qf5 {[%emt 0:00:24]} Bc7 {[%emt 0:00:30]} 23. Qd7 {[%emt 0:00:06]} Qc8 {[%emt 0:00:51]} 24. Qxc6 {[%emt 0:00:22]} Rxb3 {[%emt 0:00:10]} 25. Rxb3 {[%emt 0:00:04]} d5 {[%emt 0:00:04]} 26. Qxd5 {[%emt 0:00:39]} Rd8 {[%emt 0:00:12]} 27. Qb7 {[%emt 0:00:13]} Bb6 {[%emt 0:00:37]} 28. Qxc8 {[%emt 0:00:10]} Rxc8 {[%emt 0:00:01]} 29. g3 {[%emt 0:00:15]} Rb8 {[%emt 0:00:39]} 30. Kg2 {[%emt 0:00:05]} f6 {[%emt 0:00:06]} 31. Nd5 {[%emt 0:00:07]} Bc7 {[%emt 0:00:14]} 32. Rxb8+ {[%emt 0:00:04]} Bxb8 {[%emt 0:00:01]} 33. Ne7+ {[%emt 0:00:02]} Kf7 {[%emt 0:00:02]} 34. Nc6 {[%emt 0:00:02]} Bd6 {[%emt 0:00:05]} 35. Nxa7 {[%emt 0:00:18]} Bxa3 {[%emt 0:00:01]} 36. Nb5 {[%emt 0:00:02]} Bc5 {[%emt 0:00:06]} 37. f4 {[%emt 0:00:04]} Ke6 {[%emt 0:00:03]} 38. Kf3 {[%emt 0:00:02]} h5 {[%emt 0:00:11]} 39. Nc3 {[%emt 0:00:09]} g5 {[%emt 0:00:05]} 40. f5+ {[%emt 0:00:05]} Ke5 {[%emt 0:00:04]} 41. h3 {[%emt 0:00:09]} Bd4 {[%emt 0:00:23]} 42. Ne2 {[%emt 0:00:08]} Bb2 {[%emt 0:00:23]} 43. Ke3 {[%emt 0:00:16]} g4 {[%emt 0:00:14]} 44. h4 {[%emt 0:00:10]} Ba3 {[%emt 0:00:05]} 45. Kd3 {[%emt 0:00:29]} Bc5 {[%emt 0:00:22]} 46. Nf4 {[%emt 0:00:03]} Bf2 {[%emt 0:00:18]} 47. Nxh5 {[%emt 0:00:06]} Be1 {[%emt 0:00:01]} 48. Ke3 {[%emt 0:00:06]} Ba5 {[%emt 0:00:09]} 49. Ng7 {[%emt 0:00:05]} Bb6+ {[%emt 0:00:02]} 50. Kd3 {[%emt 0:00:02]} Bf2 {[%emt 0:00:17]} 51. h5 {[%emt 0:00:09]} Bxg3 {[%emt 0:00:07]} 52. h6 {[%emt 0:00:01]} Bf2 {[%emt 0:00:09]} 53. h7 {[%emt 0:00:06]} g3 {[%emt 0:00:01]} 54. h8=Q {[%emt 0:00:03]} g2 {[%emt 0:00:01]} 55. Qb8# 1-0

[Event "3rd FIDE WCCC Rapid U10 2019"]
[Site "Minsk"]
[Date "2019.08.17"]
[Round "8.1"]
[White "Koshulyan, Egor A."]
[Black "Samunenkov, Ihor"]
[Result "1-0"]
[ECO "B02"]
[WhiteElo "1872"]
[BlackElo "1964"]
[Annotator "NA"]
[PlyCount "65"]
[EventDate "2019.08.16"]
[EventType "swiss"]
[EventCountry "BLR"]
[SourceTitle "playchess.com"]
[Source "ChessBase"]
[SourceQuality "1"]
[TimeControl "600+5"]

1. e4 {[%emt 0:00:00]} Nf6 {[%emt 0:00:00]} 2. e5 {[%emt 0:00:00]} Nd5 {[%emt 0:00:00]} 3. c4 {[%emt 0:00:00]} Nb6 {[%emt 0:00:01]} 4. c5 {[%emt 0:00:01]} Nd5 {[%emt 0:00:01]} 5. Bc4 {[%emt 0:00:02]} e6 {[%emt 0:00:35]} 6. d4 {[%emt 0:00:01]} d6 {[%emt 0:00:37]} 7. cxd6 {[%emt 0:00:02]} cxd6 {[%emt 0:00:03]} 8. Nf3 {[%emt 0:00:01]} Nc6 {[%emt 0:00:37]} 9. O-O {[%emt 0:00:04]} Be7 {[%emt 0:00:25]} 10. a3 {[%emt 0:00:03]} O-O {[%emt 0:02:11]} 11. Bd3 {[%emt 0:00:05]} a5 {[%emt 0:01:02]} 12. Nbd2 {[%emt 0:00:10]} dxe5 {[%emt 0:00:28]} 13. dxe5 {[%emt 0:00:06]} Qc7 {[%emt 0:00:06]} 14. Re1 {[%emt 0:00:15]} Rd8 {[%emt 0:00:21]} 15. Bb1 {[%emt 0:00:30]} b6 {[%emt 0:00:45]} 16. Qc2 {[%emt 0:00:26]} g6 {[%emt 0:00:02]} 17. Nf1 {[%emt 0:01:09]} Ba6 {[%emt 0:00:09]} 18. Bg5 {[%emt 0:00:28]} Rac8 {[%emt 0:01:26]} 19. Qe4 {[%emt 0:00:23]} Bxg5 {[%emt 0:00:38]} 20. Nxg5 {[%emt 0:00:02]} Qe7 {[%emt 0:00:09]} 21. Qh4 {[%emt 0:00:09]} h5 {[%emt 0:00:17]} 22. Ba2 {[%emt 0:00:52]} Kg7 {[%emt 0:00:36]} 23. Ng3 {[%emt 0:01:30]} Nb8 {[%emt 0:00:59]} 24. N3e4 {[%emt 0:00:15]} Nd7 {[%emt 0:00:02]} 25. Nd6 {[%emt 0:00:50]} Rc2 {[%emt 0:00:08]} 26. Ndxf7 {[%emt 0:00:34]} Rf8 {[%emt 0:00:07]} 27. Bxd5 {[%emt 0:00:11]} exd5 {[%emt 0:00:11]} 28. e6 {[%emt 0:00:27]} Nc5 {[%emt 0:00:01]} 29. Qd4+ {[%emt 0:00:05]} Qf6 {[%emt 0:00:15]} 30. Qxf6+ {[%emt 0:00:01]} Kxf6 {[%emt 0:00:02]} 31. Nh7+ {[%emt 0:00:01]} Ke7 {[%emt 0:00:01]} 32. Nxf8 {[%emt 0:00:01]} Kxf8 33. e7+ {[%emt 0:00:03]} 1-0

[Event "3rd FIDE WCCC Rapid U10 2019"]
[Site "Minsk"]
[Date "2019.08.17"]
[Round "8.2"]
[White "Morkunas, Gustas"]
[Black "Usov, Aleksandr E."]
[Result "0-1"]
[ECO "B12"]
[WhiteElo "1400"]
[BlackElo "1919"]
[Annotator "NA"]
[PlyCount "84"]
[EventDate "2019.08.16"]
[EventType "swiss"]
[EventCountry "BLR"]
[SourceTitle "playchess.com"]
[Source "ChessBase"]
[SourceQuality "1"]
[TimeControl "600+5"]

1. e4 {[%emt 0:00:00]} c6 {[%emt 0:00:00]} 2. d4 {[%emt 0:00:00]} d5 {[%emt 0:00:00]} 3. e5 {[%emt 0:00:00]} c5 {[%emt 0:00:00]} 4. dxc5 {[%emt 0:00:03]} Nc6 {[%emt 0:00:00]} 5. Nf3 {[%emt 0:00:07]} Bg4 {[%emt 0:00:00]} 6. a3 {[%emt 0:00:09]} e6 {[%emt 0:00:04]} 7. Be2 {[%emt 0:00:31]} Bxc5 {[%emt 0:00:14]} 8. b4 {[%emt 0:00:01]} Bb6 {[%emt 0:00:03]} 9. Bb2 {[%emt 0:00:01]} Nge7 {[%emt 0:00:03]} 10. O-O {[%emt 0:00:05]} O-O {[%emt 0:00:03]} 11. h3 {[%emt 0:00:01]} Bxf3 {[%emt 0:00:05]} 12. Bxf3 {[%emt 0:00:01]} Bc7 {[%emt 0:00:03]} 13. Re1 {[%emt 0:00:02]} Ng6 {[%emt 0:00:02]} 14. Nd2 {[%emt 0:02:08]} Bxe5 {[%emt 0:00:11]} 15. Bxe5 {[%emt 0:00:02]} Ngxe5 {[%emt 0:00:01]} 16. Be2 {[%emt 0:00:45]} Ng6 {[%emt 0:00:04]} 17. Nb3 {[%emt 0:00:07]} Rc8 {[%emt 0:00:03]} 18. Qd2 {[%emt 0:00:17]} Nce5 {[%emt 0:00:07]} 19. Nd4 {[%emt 0:01:52]} Nc4 {[%emt 0:00:05]} 20. Bxc4 {[%emt 0:00:02]} Rxc4 {[%emt 0:00:01]} 21. Rac1 {[%emt 0:00:13]} a6 {[%emt 0:00:14]} 22. c3 {[%emt 0:00:10]} Ne7 {[%emt 0:00:09]} 23. Nb3 {[%emt 0:00:07]} b6 {[%emt 0:00:04]} 24. Qd3 {[%emt 0:00:11]} Qa8 {[%emt 0:00:16]} 25. Nd2 {[%emt 0:00:07]} Rc7 {[%emt 0:00:10]} 26. Nf3 {[%emt 0:00:05]} Rfc8 {[%emt 0:00:04]} 27. Rc2 {[%emt 0:00:55]} b5 {[%emt 0:00:12]} 28. Rec1 {[%emt 0:00:18]} Nf5 {[%emt 0:00:13]} 29. Ne5 {[%emt 0:00:16]} Nd6 {[%emt 0:00:10]} 30. Qf3 {[%emt 0:00:46]} Nc4 {[%emt 0:00:10]} 31. Nxc4 {[%emt 0:00:06]} Rxc4 {[%emt 0:00:02]} 32. Qe3 {[%emt 0:00:06]} R8c6 {[%emt 0:00:08]} 33. Qf3 {[%emt 0:00:18]} Qc8 {[%emt 0:00:04]} 34. Qd3 {[%emt 0:00:03]} d4 {[%emt 0:00:07]} 35. Qd2 {[%emt 0:00:47]} Rxc3 {[%emt 0:00:15]} 36. Rxc3 {[%emt 0:00:24]} Rxc3 {[%emt 0:00:04]} 37. Rd1 {[%emt 0:00:00]} e5 {[%emt 0:00:05]} 38. Qe2 {[%emt 0:00:03]} f6 {[%emt 0:00:03]} 39. Qa2+ {[%emt 0:00:02]} Qc4 {[%emt 0:00:03]} 40. Qb2 {[%emt 0:00:09]} Rc2 {[%emt 0:00:04]} 41. Qb1 {[%emt 0:00:05]} d3 {[%emt 0:00:05]} 42. Qa1 {[%emt 0:00:27]} d2 {[%emt 0:00:26]} 0-1

[Event "3rd FIDE WCCC Rapid U10 2019"]
[Site "Minsk"]
[Date "2019.08.17"]
[Round "8.3"]
[White "Pham, Tran Gia Phuc"]
[Black "Novozhilov, Semen"]
[Result "0-1"]
[ECO "A58"]
[WhiteElo "1645"]
[BlackElo "1686"]
[Annotator "NA"]
[PlyCount "88"]
[EventDate "2019.08.16"]
[EventType "swiss"]
[EventCountry "BLR"]
[SourceTitle "playchess.com"]
[Source "ChessBase"]
[SourceQuality "1"]
[TimeControl "600+5"]

1. d4 {[%emt 0:00:00]} Nf6 {[%emt 0:00:00]} 2. c4 {[%emt 0:00:00]} c5 {[%emt 0:00:03]} 3. d5 {[%emt 0:00:00]} b5 {[%emt 0:00:05]} 4. cxb5 {[%emt 0:00:00]} a6 {[%emt 0:00:02]} 5. bxa6 {[%emt 0:00:01]} g6 {[%emt 0:00:05]} 6. Nc3 {[%emt 0:00:01]} Bg7 {[%emt 0:00:04]} 7. Nf3 {[%emt 0:00:03]} O-O {[%emt 0:00:05]} 8. Nd2 {[%emt 0:00:12]} d6 {[%emt 0:00:11]} 9. e4 {[%emt 0:00:06]} Nbd7 {[%emt 0:00:16]} 10. Be2 {[%emt 0:00:06]} Nb6 {[%emt 0:00:15]} 11. O-O {[%emt 0:00:02]} Bxa6 {[%emt 0:00:07]} 12. Bxa6 {[%emt 0:00:06]} Rxa6 {[%emt 0:00:03]} 13. Qe2 {[%emt 0:00:01]} Qa8 {[%emt 0:00:17]} 14. b3 {[%emt 0:00:16]} Nfxd5 {[%emt 0:00:10]} 15. exd5 {[%emt 0:01:21]} Bxc3 {[%emt 0:00:04]} 16. Rb1 {[%emt 0:00:01]} Rxa2 {[%emt 0:00:08]} 17. Qe3 {[%emt 0:01:05]} Nxd5 {[%emt 0:00:07]} 18. Qe1 {[%emt 0:00:38]} Nf4 {[%emt 0:00:09]} 19. f3 {[%emt 0:00:07]} Nd3 {[%emt 0:00:02]} 20. Qe2 {[%emt 0:00:49]} Nxc1 {[%emt 0:00:08]} 21. Rfxc1 {[%emt 0:00:01]} Bxd2 {[%emt 0:00:06]} 22. Rd1 {[%emt 0:00:01]} Bg5 {[%emt 0:00:05]} 23. Qc4 {[%emt 0:00:03]} Be3+ {[%emt 0:00:15]} 24. Kh1 {[%emt 0:00:00]} Qa6 {[%emt 0:00:26]} 25. Qe4 {[%emt 0:00:09]} Qe2 {[%emt 0:00:10]} 26. Qg4 {[%emt 0:00:01]} f5 {[%emt 0:00:17]} 27. Qh3 {[%emt 0:00:05]} Rb2 {[%emt 0:00:09]} 28. Ra1 {[%emt 0:00:03]} Rxb3 {[%emt 0:00:12]} 29. Re1 {[%emt 0:00:00]} Qc2 {[%emt 0:00:20]} 30. Qh4 {[%emt 0:00:14]} Rf7 {[%emt 0:00:24]} 31. Rxe3 {[%emt 0:00:24]} Rxe3 {[%emt 0:00:21]} 32. Qh6 {[%emt 0:00:01]} Ra3 {[%emt 0:00:01]} 33. Rc1 {[%emt 0:00:06]} Qd3 {[%emt 0:00:11]} 34. Qh4 {[%emt 0:00:08]} Qd4 {[%emt 0:00:06]} 35. Qe1 {[%emt 0:00:02]} e5 {[%emt 0:00:18]} 36. Rd1 {[%emt 0:00:01]} Qe3 {[%emt 0:00:01]} 37. Qf1 {[%emt 0:00:04]} Ra2 {[%emt 0:00:24]} 38. Rb1 {[%emt 0:00:03]} Qf2 {[%emt 0:00:05]} 39. Rb8+ {[%emt 0:00:16]} Kg7 {[%emt 0:00:01]} 40. Qxf2 {[%emt 0:00:01]} Rxf2 {[%emt 0:00:03]} 41. Kg1 {[%emt 0:00:01]} Rd2 {[%emt 0:00:05]} 42. Rc8 {[%emt 0:00:01]} e4 {[%emt 0:00:06]} 43. f4 {[%emt 0:00:07]} e3 {[%emt 0:00:06]} 44. Re8 {[%emt 0:00:02]} Rd1# {[%emt 0:00:01]} 0-1

[Event "3rd FIDE WCCC Rapid U10 2019"]
[Site "Minsk"]
[Date "2019.08.17"]
[Round "8.4"]
[White "Toktomushev, Teimur"]
[Black "Pustovit, Maksym"]
[Result "1-0"]
[ECO "C40"]
[WhiteElo "1977"]
[BlackElo "1251"]
[Annotator "NA"]
[PlyCount "87"]
[EventDate "2019.08.16"]
[EventType "swiss"]
[EventCountry "BLR"]
[SourceTitle "playchess.com"]
[Source "ChessBase"]
[SourceQuality "1"]
[TimeControl "600+5"]

1. e4 {[%emt 0:00:00]} e5 {[%emt 0:00:00]} 2. Nf3 {[%emt 0:00:00]} d5 {[%emt 0:00:00]} 3. Nxe5 {[%emt 0:00:16]} Bd6 {[%emt 0:00:00]} 4. d4 {[%emt 0:00:15]} dxe4 {[%emt 0:00:00]} 5. Nc4 {[%emt 0:00:43]} Nf6 {[%emt 0:00:01]} 6. Be2 {[%emt 0:00:05]} O-O {[%emt 0:00:02]} 7. O-O {[%emt 0:00:02]} Nc6 {[%emt 0:00:03]} 8. c3 {[%emt 0:00:37]} Ne7 {[%emt 0:00:16]} 9. Bg5 {[%emt 0:00:08]} Nf5 {[%emt 0:00:06]} 10. Nbd2 {[%emt 0:00:29]} Re8 {[%emt 0:00:02]} 11. Qc2 {[%emt 0:00:26]} h6 {[%emt 0:00:57]} 12. Bxf6 {[%emt 0:00:14]} Qxf6 {[%emt 0:00:13]} 13. Nxe4 {[%emt 0:00:44]} Bxh2+ {[%emt 0:00:32]} 14. Kxh2 {[%emt 0:00:02]} Qh4+ {[%emt 0:00:02]} 15. Kg1 {[%emt 0:00:00]} Rxe4 {[%emt 0:00:16]} 16. Bd3 {[%emt 0:00:46]} Rf4 {[%emt 0:00:03]} 17. Ne3 {[%emt 0:00:58]} Qg5 {[%emt 0:01:04]} 18. Nd5 {[%emt 0:01:08]} Rh4 {[%emt 0:00:41]} 19. Bxf5 {[%emt 0:00:44]} Bxf5 {[%emt 0:00:05]} 20. Qxf5 {[%emt 0:00:15]} Qxf5 {[%emt 0:00:33]} 21. Ne7+ {[%emt 0:00:01]} Kh7 {[%emt 0:00:03]} 22. Nxf5 {[%emt 0:00:01]} Rf4 {[%emt 0:00:02]} 23. Ne3 {[%emt 0:00:02]} c6 {[%emt 0:00:05]} 24. g3 {[%emt 0:00:03]} Rf6 {[%emt 0:00:03]} 25. Rae1 {[%emt 0:00:04]} Rd6 {[%emt 0:00:17]} 26. Nf5 {[%emt 0:00:13]} Rf6 {[%emt 0:00:03]} 27. Re5 {[%emt 0:00:09]} Rd8 {[%emt 0:00:09]} 28. Rfe1 {[%emt 0:00:08]} b6 {[%emt 0:00:10]} 29. Ne3 {[%emt 0:00:07]} Rd7 {[%emt 0:00:08]} 30. Nc4 {[%emt 0:00:06]} b5 {[%emt 0:00:08]} 31. Nd2 {[%emt 0:00:03]} Rd8 {[%emt 0:00:13]} 32. Re7 {[%emt 0:00:09]} Ra8 {[%emt 0:00:05]} 33. Ne4 {[%emt 0:00:03]} Rf5 {[%emt 0:00:11]} 34. Nd6 {[%emt 0:00:13]} Rf6 {[%emt 0:00:05]} 35. Ne4 {[%emt 0:00:29]} Rf5 {[%emt 0:00:05]} 36. Nc5 {[%emt 0:00:05]} a5 {[%emt 0:00:12]} 37. Rc7 {[%emt 0:00:04]} Rf6 {[%emt 0:00:10]} 38. Ree7 {[%emt 0:00:08]} Kg8 {[%emt 0:00:11]} 39. Ne4 {[%emt 0:00:04]} Rf5 {[%emt 0:00:12]} 40. Nd6 {[%emt 0:00:25]} Rf6 {[%emt 0:00:02]} 41. Nxf7 {[%emt 0:00:08]} Rf8 {[%emt 0:00:08]} 42. Ne5 {[%emt 0:00:08]} Rd8 {[%emt 0:00:34]} 43. Rxg7+ {[%emt 0:00:05]} Kf8 {[%emt 0:00:10]} 44. Ng6+ {[%emt 0:00:13]} 1-0

[Event "3rd FIDE WCCC Rapid U10 2019"]
[Site "Minsk"]
[Date "2019.08.17"]
[Round "8.5"]
[White "Kuznetsov, Ivan V."]
[Black "Zverev, Lev"]
[Result "0-1"]
[ECO "C26"]
[WhiteElo "1434"]
[BlackElo "1881"]
[Annotator "NA"]
[PlyCount "124"]
[EventDate "2019.08.16"]
[EventType "swiss"]
[EventCountry "BLR"]
[SourceTitle "playchess.com"]
[Source "ChessBase"]
[SourceQuality "1"]
[TimeControl "600+5"]

1. e4 {[%emt 0:00:00]} e5 {[%emt 0:00:00]} 2. Nc3 {[%emt 0:00:00]} Nf6 {[%emt 0:00:00]} 3. g3 {[%emt 0:00:02]} d5 {[%emt 0:00:04]} 4. exd5 {[%emt 0:00:03]} Nxd5 {[%emt 0:00:02]} 5. Bg2 {[%emt 0:00:03]} Nxc3 {[%emt 0:00:02]} 6. bxc3 {[%emt 0:00:02]} Bd6 {[%emt 0:00:02]} 7. Ne2 {[%emt 0:00:22]} O-O {[%emt 0:00:03]} 8. O-O {[%emt 0:00:08]} Nc6 {[%emt 0:00:08]} 9. d3 {[%emt 0:00:10]} Be6 {[%emt 0:00:04]} 10. h3 {[%emt 0:00:21]} Qd7 {[%emt 0:00:02]} 11. Kh2 {[%emt 0:00:02]} f5 {[%emt 0:00:02]} 12. f4 {[%emt 0:00:23]} Kh8 {[%emt 0:00:06]} 13. d4 {[%emt 0:00:34]} exd4 {[%emt 0:00:24]} 14. cxd4 {[%emt 0:00:34]} Bc4 {[%emt 0:00:03]} 15. d5 {[%emt 0:01:46]} Ne7 {[%emt 0:00:15]} 16. Re1 {[%emt 0:00:43]} Rae8 {[%emt 0:00:04]} 17. Qd4 {[%emt 0:00:42]} Ba6 {[%emt 0:00:47]} 18. Bb2 {[%emt 0:00:22]} Nc8 {[%emt 0:00:15]} 19. Ng1 {[%emt 0:02:03]} b6 {[%emt 0:01:52]} 20. Nf3 {[%emt 0:00:15]} Bc5 {[%emt 0:00:03]} 21. Qc3 {[%emt 0:00:28]} Qf7 {[%emt 0:01:00]} 22. Ne5 {[%emt 0:00:19]} Qg8 {[%emt 0:00:02]} 23. Nd7 {[%emt 0:00:19]} Rf7 {[%emt 0:00:18]} 24. Nf6 {[%emt 0:01:27]} Rxf6 {[%emt 0:01:51]} 25. Qxf6 {[%emt 0:00:08]} Rf8 {[%emt 0:00:07]} 26. Qe6 {[%emt 0:00:14]} Rf7 {[%emt 0:00:25]} 27. Qe8 {[%emt 0:00:23]} Rf8 {[%emt 0:00:11]} 28. Qe6 {[%emt 0:00:01]} Rf7 {[%emt 0:00:01]} 29. Qc6 {[%emt 0:00:17]} Nd6 {[%emt 0:00:07]} 30. Qa4 {[%emt 0:00:08]} Bb5 {[%emt 0:00:17]} 31. Qb3 {[%emt 0:00:03]} Rd7 {[%emt 0:00:11]} 32. a4 {[%emt 0:00:03]} Bc4 {[%emt 0:00:24]} 33. Qc3 {[%emt 0:00:06]} Bxd5 {[%emt 0:00:10]} 34. Bxd5 {[%emt 0:00:05]} Qxd5 {[%emt 0:00:02]} 35. Rad1 {[%emt 0:00:06]} Qg8 {[%emt 0:00:04]} 36. Qb3 {[%emt 0:00:04]} Qd8 {[%emt 0:00:37]} 37. Qc3 {[%emt 0:00:09]} a5 {[%emt 0:00:17]} 38. Qe5 {[%emt 0:00:04]} Qf8 {[%emt 0:00:25]} 39. Qe6 {[%emt 0:00:07]} Rf7 {[%emt 0:00:10]} 40. Qe2 {[%emt 0:00:05]} Ne4 {[%emt 0:00:07]} 41. Qf3 {[%emt 0:00:03]} h6 {[%emt 0:00:12]} 42. Rd5 {[%emt 0:00:07]} Re7 {[%emt 0:00:20]} 43. Qh5 {[%emt 0:00:05]} Nf6 {[%emt 0:00:42]} 44. Bxf6 {[%emt 0:00:06]} Qxf6 {[%emt 0:00:20]} 45. Rd8+ {[%emt 0:00:02]} Kh7 {[%emt 0:00:02]} 46. Rxe7 {[%emt 0:00:03]} Bxe7 {[%emt 0:00:01]} 47. Rd5 {[%emt 0:00:06]} g6 {[%emt 0:00:07]} 48. Qe2 {[%emt 0:00:01]} Bd6 {[%emt 0:00:03]} 49. Rd3 {[%emt 0:00:06]} Qa1 {[%emt 0:00:10]} 50. Rd1 {[%emt 0:00:08]} Qxa4 {[%emt 0:00:05]} 51. Qd3 {[%emt 0:00:06]} Qc6 {[%emt 0:00:06]} 52. Qd5 {[%emt 0:00:02]} Qxc2+ {[%emt 0:00:02]} 53. Rd2 {[%emt 0:00:02]} Qc3 {[%emt 0:00:07]} 54. Qf7+ {[%emt 0:00:02]} Qg7 {[%emt 0:00:01]} 55. Qe6 {[%emt 0:00:05]} a4 {[%emt 0:00:04]} 56. Ra2 {[%emt 0:00:04]} a3 {[%emt 0:00:01]} 57. Qd5 {[%emt 0:00:06]} Qe7 {[%emt 0:00:03]} 58. Qc4 {[%emt 0:00:06]} Bc5 {[%emt 0:00:04]} 59. Re2 {[%emt 0:00:03]} Qd7 {[%emt 0:00:02]} 60. Qc3 {[%emt 0:00:09]} Qd1 {[%emt 0:00:14]} 61. Rg2 {[%emt 0:00:07]} a2 {[%emt 0:00:06]} 62. Qf6 {[%emt 0:00:14]} a1=Q {[%emt 0:00:04]} 0-1